[Event "Titled Tuesday Blitz August 1 Late 2023"]
[White "Vega Gutierrez, Sabrina"]
[Black "Graif, William"]
[WhiteFideId "2219026"]
[BlackFideId "2609835"]
[WhiteElo "2441"]
[BlackElo "2552"]
[Result "0-1"]
[Round "8"]
[TimeControl "180+1"]
[Date "2023.08.01"]
[WhiteClock "0:00:00"]
[BlackClock "0:00:21"]
[Board "61"]

1. e4 {[%clk 0:03:00]}  e5 {[%clk 0:02:59]} 2. Nf3 {[%clk 0:03:01]}  Bc5 {[%clk 0:02:58]} 3. Bc4 {[%clk 0:03:00]}  Nf6 {[%clk 0:02:58]} 4. d3 {[%clk 0:02:59]}  Nc6 {[%clk 0:02:58]} 5. c3 {[%clk 0:02:57]}  d6 {[%clk 0:02:54]} 6. b4 {[%clk 0:02:54]}  Bb6 {[%clk 0:02:54]} 7. O-O {[%clk 0:02:52]}  Ne7 {[%clk 0:02:44]} 8. Bg5 {[%clk 0:02:36]}  Ng6 {[%clk 0:02:38]} 9. Nh4 {[%clk 0:02:36]}  h6 {[%clk 0:02:15]} 10. Nxg6 {[%clk 0:02:33]}  fxg6 {[%clk 0:02:15]} 11. Be3 {[%clk 0:02:30]}  Bg4 {[%clk 0:01:59]} 12. Qb3 {[%clk 0:02:25]}  Qd7 {[%clk 0:01:55]} 13. a4 {[%clk 0:02:18]}  Rf8 {[%clk 0:01:08]} 14. Bxb6 {[%clk 0:02:17]}  axb6 {[%clk 0:01:06]} 15. f3 {[%clk 0:02:17]}  Bh5 {[%clk 0:00:49]} 16. Nd2 {[%clk 0:02:00]}  g5 {[%clk 0:00:46]} 17. b5 {[%clk 0:01:58]}  Bf7 {[%clk 0:00:41]} 18. Ra2 {[%clk 0:01:52]}  Nh5 {[%clk 0:00:35]} 19. Rfa1 {[%clk 0:01:45]}  Nf4 {[%clk 0:00:22]} 20. Nf1 {[%clk 0:01:45]}  Nxd3 {[%clk 0:00:20]} 21. a5 {[%clk 0:01:41]}  Nc5 {[%clk 0:00:18]} 22. Bxf7+ {[%clk 0:01:39]}  Rxf7 {[%clk 0:00:13]} 23. Qc4 {[%clk 0:01:37]}  Rc8 {[%clk 0:00:10]} 24. a6 {[%clk 0:01:35]}  bxa6 {[%clk 0:00:09]} 25. bxa6 {[%clk 0:01:36]}  Ra8 {[%clk 0:00:09]} 26. a7 {[%clk 0:01:36]}  Qc6 {[%clk 0:00:08]} 27. Ne3 {[%clk 0:01:33]}  Kf8 {[%clk 0:00:06]} 28. Nf5 {[%clk 0:01:17]}  b5 {[%clk 0:00:07]} 29. Qe2 {[%clk 0:00:51]}  Qb6 {[%clk 0:00:07]} 30. Kh1 {[%clk 0:00:49]}  Na4 {[%clk 0:00:08]} 31. c4 {[%clk 0:00:48]}  Nc3 {[%clk 0:00:08]} 32. Qd2 {[%clk 0:00:37]}  Nxa2 {[%clk 0:00:09]} 33. Qxa2 {[%clk 0:00:37]}  b4 {[%clk 0:00:09]} 34. c5 {[%clk 0:00:32]}  dxc5 {[%clk 0:00:09]} 35. Qd5 {[%clk 0:00:32]}  c6 {[%clk 0:00:08]} 36. Qd6+ {[%clk 0:00:31]}  Kg8 {[%clk 0:00:08]} 37. Ne7+ {[%clk 0:00:27]}  Rxe7 {[%clk 0:00:05]} 38. Qxe7 {[%clk 0:00:27]}  b3 {[%clk 0:00:06]} 39. Rd1 {[%clk 0:00:24]}  b2 {[%clk 0:00:06]} 40. Rb1 {[%clk 0:00:22]}  Rxa7 {[%clk 0:00:05]} 41. Qe8+ {[%clk 0:00:21]}  Kh7 {[%clk 0:00:06]} 42. Qxe5 {[%clk 0:00:21]}  Ra1 {[%clk 0:00:05]} 43. Qf5+ {[%clk 0:00:22]}  Kg8 {[%clk 0:00:06]} 44. Qc8+ {[%clk 0:00:19]}  Kh7 {[%clk 0:00:07]} 45. Qf5+ {[%clk 0:00:19]}  Kg8 {[%clk 0:00:07]} 46. Qc8+ {[%clk 0:00:19]}  Kf7 {[%clk 0:00:08]} 47. Qd7+ {[%clk 0:00:19]}  Kf8 {[%clk 0:00:09]} 48. Qd6+ {[%clk 0:00:12]}  Ke8 {[%clk 0:00:09]} 49. Qe6+ {[%clk 0:00:12]}  Kd8 {[%clk 0:00:10]} 50. Qg8+ {[%clk 0:00:12]}  Kc7 {[%clk 0:00:09]} 51. Qxg7+ {[%clk 0:00:10]}  Kb8 {[%clk 0:00:09]} 52. Qf8+ {[%clk 0:00:09]}  Kb7 {[%clk 0:00:09]} 53. Qg7+ {[%clk 0:00:09]}  Ka6 {[%clk 0:00:10]} 54. Rxa1+ {[%clk 0:00:07]}  bxa1=Q+ {[%clk 0:00:11]} 55. Qxa1+ {[%clk 0:00:07]}  Qa5 {[%clk 0:00:11]} 56. Qf1+ {[%clk 0:00:05]}  Qb5 {[%clk 0:00:12]} 57. Qa1+ {[%clk 0:00:05]}  Kb6 {[%clk 0:00:13]} 58. h4 {[%clk 0:00:05]}  c4 {[%clk 0:00:14]} 59. hxg5 {[%clk 0:00:05]}  Qxg5 {[%clk 0:00:14]} 60. Qd4+ {[%clk 0:00:05]}  Qc5 {[%clk 0:00:14]} 61. Qb2+ {[%clk 0:00:04]}  Qb5 {[%clk 0:00:14]} 62. Qd4+ {[%clk 0:00:04]}  Qc5 {[%clk 0:00:15]} 63. Qb2+ {[%clk 0:00:04]}  Kc7 {[%clk 0:00:16]} 64. Qg7+ {[%clk 0:00:03]}  Kc8 {[%clk 0:00:16]} 65. Qg8+ {[%clk 0:00:03]}  Kb7 {[%clk 0:00:17]} 66. Qg7+ {[%clk 0:00:03]}  Ka6 {[%clk 0:00:18]} 67. Qa1+ {[%clk 0:00:03]}  Qa5 {[%clk 0:00:19]} 68. Qf6 {[%clk 0:00:02]}  Qh5+ {[%clk 0:00:19]} 69. Kg1 {[%clk 0:00:01]}  Qc5+ {[%clk 0:00:20]} 70. Kh1 {[%clk 0:00:00]}  c3 {[%clk 0:00:21]} 0-1


[Site "https://www.chess.com"]

[Event "Titled Tuesday Blitz August 1 Late 2023"]
[White "Golubev, Mikhail"]
[Black "Kazakov, Mikhail"]
[WhiteFideId "14100983"]
[BlackFideId "14102749"]
[WhiteElo "2547"]
[BlackElo "2442"]
[Result "1/2-1/2"]
[Round "8"]
[TimeControl "180+1"]
[Date "2023.08.01"]
[WhiteClock "0:00:06"]
[BlackClock "0:00:07"]
[Board "62"]

1. e4 {[%clk 0:03:00]}  e5 {[%clk 0:02:54]} 2. Nf3 {[%clk 0:03:01]}  Nc6 {[%clk 0:02:51]} 3. Bc4 {[%clk 0:02:59]}  Nf6 {[%clk 0:02:50]} 4. Ng5 {[%clk 0:02:59]}  d5 {[%clk 0:02:50]} 5. exd5 {[%clk 0:02:59]}  Na5 {[%clk 0:02:50]} 6. Bb5+ {[%clk 0:02:59]}  c6 {[%clk 0:02:50]} 7. dxc6 {[%clk 0:03:00]}  bxc6 {[%clk 0:02:50]} 8. Bd3 {[%clk 0:03:00]}  Nd5 {[%clk 0:02:48]} 9. Nf3 {[%clk 0:02:59]}  Bd6 {[%clk 0:02:44]} 10. O-O {[%clk 0:02:58]}  Nf4 {[%clk 0:02:40]} 11. Re1 {[%clk 0:02:52]}  Nxd3 {[%clk 0:02:29]} 12. cxd3 {[%clk 0:02:53]}  O-O {[%clk 0:02:25]} 13. Nc3 {[%clk 0:02:40]}  f6 {[%clk 0:02:13]} 14. b3 {[%clk 0:02:32]}  Bc5 {[%clk 0:02:03]} 15. d4 {[%clk 0:01:54]}  Bxd4 {[%clk 0:01:55]} 16. Ba3 {[%clk 0:01:49]}  Re8 {[%clk 0:01:51]} 17. Nxd4 {[%clk 0:01:41]}  Qxd4 {[%clk 0:01:52]} 18. Rc1 {[%clk 0:01:41]}  Ba6 {[%clk 0:01:34]} 19. Ne4 {[%clk 0:01:33]}  Rad8 {[%clk 0:01:20]} 20. Bc5 {[%clk 0:01:15]}  Qd7 {[%clk 0:01:19]} 21. Rc3 {[%clk 0:00:54]}  Re6 {[%clk 0:01:01]} 22. Rh3 {[%clk 0:00:36]}  Bd3 {[%clk 0:00:49]} 23. Bb4 {[%clk 0:00:35]}  Nb7 {[%clk 0:00:41]} 24. Qh5 {[%clk 0:00:26]}  g6 {[%clk 0:00:40]} 25. Qf3 {[%clk 0:00:25]}  Bxe4 {[%clk 0:00:30]} 26. Qxe4 {[%clk 0:00:24]}  Qd4 {[%clk 0:00:20]} 27. Qxd4 {[%clk 0:00:23]}  Rxd4 {[%clk 0:00:21]} 28. Bc3 {[%clk 0:00:23]}  Rd5 {[%clk 0:00:19]} 29. Rhe3 {[%clk 0:00:22]}  Nd6 {[%clk 0:00:17]} 30. f4 {[%clk 0:00:21]}  e4 {[%clk 0:00:16]} 31. d3 {[%clk 0:00:20]}  f5 {[%clk 0:00:16]} 32. Bb4 {[%clk 0:00:17]}  Kf7 {[%clk 0:00:15]} 33. Bxd6 {[%clk 0:00:16]}  Rdxd6 {[%clk 0:00:16]} 34. dxe4 {[%clk 0:00:16]}  fxe4 {[%clk 0:00:15]} 35. Rxe4 {[%clk 0:00:16]}  Rxe4 {[%clk 0:00:12]} 36. Rxe4 {[%clk 0:00:17]}  Rd1+ {[%clk 0:00:10]} 37. Kf2 {[%clk 0:00:17]}  Rd2+ {[%clk 0:00:10]} 38. Re2 {[%clk 0:00:17]}  Rd4 {[%clk 0:00:11]} 39. g3 {[%clk 0:00:17]}  a5 {[%clk 0:00:10]} 40. Ke3 {[%clk 0:00:17]}  Rb4 {[%clk 0:00:09]} 41. Rc2 {[%clk 0:00:17]}  a4 {[%clk 0:00:10]} 42. bxa4 {[%clk 0:00:15]}  Rxa4 {[%clk 0:00:11]} 43. h4 {[%clk 0:00:15]}  Ra3+ {[%clk 0:00:10]} 44. Kf2 {[%clk 0:00:14]}  c5 {[%clk 0:00:10]} 45. g4 {[%clk 0:00:13]}  h5 {[%clk 0:00:09]} 46. gxh5 {[%clk 0:00:12]}  gxh5 {[%clk 0:00:10]} 47. Rxc5 {[%clk 0:00:11]}  Kg6 {[%clk 0:00:08]} 48. Rc6+ {[%clk 0:00:11]}  Kf5 {[%clk 0:00:07]} 49. Rc5+ {[%clk 0:00:10]}  Kg4 {[%clk 0:00:07]} 50. Rg5+ {[%clk 0:00:09]}  Kxh4 {[%clk 0:00:07]} 51. Rg7 {[%clk 0:00:08]}  Rxa2+ {[%clk 0:00:07]} 52. Ke3 {[%clk 0:00:08]}  Ra3+ {[%clk 0:00:06]} 53. Ke4 {[%clk 0:00:08]}  Ra4+ {[%clk 0:00:06]} 54. Ke5 {[%clk 0:00:07]}  Ra5+ {[%clk 0:00:06]} 55. Ke4 {[%clk 0:00:07]}  Ra4+ {[%clk 0:00:06]} 56. Ke5 {[%clk 0:00:07]}  Ra5+ {[%clk 0:00:07]} 57. Ke4 {[%clk 0:00:06]}  Ra4+ {[%clk 0:00:07]} 1/2-1/2


[Site "https://www.chess.com"]

[Event "Titled Tuesday Blitz August 1 Late 2023"]
[White "Prado Lobo, Jonas"]
[Black "Kielinkei"]
[WhiteFideId "32050666"]
[WhiteElo "2542"]
[BlackElo "2431"]
[Result "0-1"]
[Round "8"]
[TimeControl "180+1"]
[Date "2023.08.01"]
[WhiteClock "0:01:48"]
[BlackClock "0:01:55"]
[Board "63"]

1. e4 {[%clk 0:02:57]}  c5 {[%clk 0:02:59]} 2. Nf3 {[%clk 0:02:57]}  e6 {[%clk 0:02:59]} 3. c4 {[%clk 0:02:55]}  Nc6 {[%clk 0:02:58]} 4. Nc3 {[%clk 0:02:55]}  Nd4 {[%clk 0:02:58]} 5. d3 {[%clk 0:02:47]}  Ne7 {[%clk 0:02:57]} 6. Nxd4 {[%clk 0:02:30]}  cxd4 {[%clk 0:02:58]} 7. Ne2 {[%clk 0:02:30]}  Nc6 {[%clk 0:02:57]} 8. f4 {[%clk 0:02:29]}  d5 {[%clk 0:02:52]} 9. cxd5 {[%clk 0:02:26]}  exd5 {[%clk 0:02:53]} 10. e5 {[%clk 0:02:23]}  f6 {[%clk 0:02:51]} 11. g3 {[%clk 0:02:19]}  fxe5 {[%clk 0:02:48]} 12. fxe5 {[%clk 0:02:20]}  Nxe5 {[%clk 0:02:44]} 13. Bg2 {[%clk 0:02:20]}  Bb4+ {[%clk 0:02:42]} 14. Kf1 {[%clk 0:02:06]}  O-O+ {[%clk 0:02:41]} 15. Bf4 {[%clk 0:02:03]}  g5 {[%clk 0:02:31]} 16. Qb3 {[%clk 0:02:03]}  gxf4 {[%clk 0:02:28]} 17. Nxf4 {[%clk 0:01:58]}  Bd2 {[%clk 0:02:15]} 18. Bxd5+ {[%clk 0:01:54]}  Kh8 {[%clk 0:02:13]} 19. Ke2 {[%clk 0:01:52]}  Bxf4 {[%clk 0:02:12]} 20. gxf4 {[%clk 0:01:53]}  Rxf4 {[%clk 0:02:09]} 21. Rhg1 {[%clk 0:01:54]}  Bg4+ {[%clk 0:02:03]} 22. Kd2 {[%clk 0:01:52]}  Rf2+ {[%clk 0:01:56]} 23. Ke1 {[%clk 0:01:48]}  Re2+ {[%clk 0:01:55]} 0-1


[Site "https://www.chess.com"]

[Event "Titled Tuesday Blitz August 1 Late 2023"]
[White "Berezin, Viktor"]
[Black "Pesotskiy, Mikhail"]
[WhiteFideId "14107872"]
[BlackFideId "34164453"]
[WhiteElo "2539"]
[BlackElo "2424"]
[Result "0-1"]
[Round "8"]
[TimeControl "180+1"]
[Date "2023.08.01"]
[WhiteClock "0:00:55"]
[BlackClock "0:00:35"]
[Board "64"]

1. d4 {[%clk 0:02:55]}  Nf6 {[%clk 0:03:00]} 2. Nf3 {[%clk 0:02:51]}  c5 {[%clk 0:02:57]} 3. d5 {[%clk 0:02:51]}  b5 {[%clk 0:02:57]} 4. c4 {[%clk 0:02:51]}  Qa5+ {[%clk 0:02:58]} 5. Bd2 {[%clk 0:02:46]}  b4 {[%clk 0:02:58]} 6. a3 {[%clk 0:02:44]}  g6 {[%clk 0:02:55]} 7. Qc2 {[%clk 0:02:43]}  Bg7 {[%clk 0:02:53]} 8. e4 {[%clk 0:02:44]}  d6 {[%clk 0:02:54]} 9. e5 {[%clk 0:02:36]}  dxe5 {[%clk 0:02:38]} 10. Nxe5 {[%clk 0:02:37]}  O-O {[%clk 0:02:38]} 11. Nf3 {[%clk 0:02:27]}  Bf5 {[%clk 0:02:11]} 12. Bd3 {[%clk 0:02:25]}  e6 {[%clk 0:02:02]} 13. Bxf5 {[%clk 0:02:18]}  exf5 {[%clk 0:02:03]} 14. O-O {[%clk 0:02:15]}  Nbd7 {[%clk 0:02:02]} 15. Ra2 {[%clk 0:01:51]}  Ne4 {[%clk 0:01:24]} 16. Be1 {[%clk 0:01:43]}  Qb6 {[%clk 0:01:06]} 17. axb4 {[%clk 0:01:38]}  cxb4 {[%clk 0:01:06]} 18. b3 {[%clk 0:01:38]}  a5 {[%clk 0:01:02]} 19. Nfd2 {[%clk 0:01:33]}  Ndc5 {[%clk 0:00:49]} 20. Nxe4 {[%clk 0:01:23]}  fxe4 {[%clk 0:00:49]} 21. Bd2 {[%clk 0:01:19]}  a4 {[%clk 0:00:50]} 22. Be3 {[%clk 0:01:07]}  axb3 {[%clk 0:00:47]} 23. Qxb3 {[%clk 0:01:07]}  Nxb3 {[%clk 0:00:45]} 24. Rxa8 {[%clk 0:01:06]}  Bd4 {[%clk 0:00:34]} 25. Rxf8+ {[%clk 0:01:00]}  Kxf8 {[%clk 0:00:35]} 26. Bh6+ {[%clk 0:00:55]}  Ke8 {[%clk 0:00:35]} 0-1


[Site "https://www.chess.com"]

[Event "Titled Tuesday Blitz August 1 Late 2023"]
[White "Hirneise, Jens"]
[Black "Janaszak, Dawid"]
[WhiteFideId "24614734"]
[BlackFideId "1119206"]
[WhiteElo "2467"]
[BlackElo "2523"]
[Result "0-1"]
[Round "8"]
[TimeControl "180+1"]
[Date "2023.08.01"]
[WhiteClock "0:00:00"]
[BlackClock "0:01:22"]
[Board "72"]

1. d4 {[%clk 0:00:32]}  Nf6 {[%clk 0:02:58]} 2. c4 {[%clk 0:00:33]}  g6 {[%clk 0:02:57]} 3. Nc3 {[%clk 0:00:33]}  Bg7 {[%clk 0:02:58]} 4. g3 {[%clk 0:00:33]}  O-O {[%clk 0:02:57]} 5. Bg2 {[%clk 0:00:34]}  d6 {[%clk 0:02:57]} 6. Nf3 {[%clk 0:00:34]}  Nbd7 {[%clk 0:02:56]} 7. O-O {[%clk 0:00:35]}  e5 {[%clk 0:02:57]} 8. e4 {[%clk 0:00:34]}  c6 {[%clk 0:02:56]} 9. h3 {[%clk 0:00:34]}  Qc7 {[%clk 0:02:56]} 10. Re1 {[%clk 0:00:34]}  Re8 {[%clk 0:02:56]} 11. d5 {[%clk 0:00:35]}  a5 {[%clk 0:02:55]} 12. Be3 {[%clk 0:00:34]}  cxd5 {[%clk 0:02:50]} 13. cxd5 {[%clk 0:00:33]}  Nc5 {[%clk 0:02:50]} 14. Rc1 {[%clk 0:00:28]}  Bd7 {[%clk 0:02:50]} 15. Qc2 {[%clk 0:00:22]}  a4 {[%clk 0:02:48]} 16. Nb1 {[%clk 0:00:19]}  b6 {[%clk 0:02:45]} 17. Na3 {[%clk 0:00:18]}  Qb7 {[%clk 0:02:36]} 18. Nd2 {[%clk 0:00:18]}  b5 {[%clk 0:02:30]} 19. Bxc5 {[%clk 0:00:17]}  Rec8 {[%clk 0:02:31]} 20. Qd3 {[%clk 0:00:15]}  Rxc5 {[%clk 0:02:29]} 21. Nab1 {[%clk 0:00:15]}  Rac8 {[%clk 0:02:24]} 22. Rxc5 {[%clk 0:00:15]}  Rxc5 {[%clk 0:02:25]} 23. b4 {[%clk 0:00:16]}  Rc7 {[%clk 0:02:20]} 24. Nf1 {[%clk 0:00:15]}  Qc8 {[%clk 0:02:16]} 25. Ne3 {[%clk 0:00:15]}  Bh6 {[%clk 0:02:15]} 26. Bf1 {[%clk 0:00:15]}  Ne8 {[%clk 0:02:10]} 27. h4 {[%clk 0:00:14]}  Rc1 {[%clk 0:02:03]} 28. Qd2 {[%clk 0:00:13]}  Rc7 {[%clk 0:01:59]} 29. Na3 {[%clk 0:00:12]}  Qb8 {[%clk 0:01:45]} 30. Rc1 {[%clk 0:00:11]}  Rb7 {[%clk 0:01:46]} 31. Qe2 {[%clk 0:00:10]}  f5 {[%clk 0:01:43]} 32. exf5 {[%clk 0:00:10]}  gxf5 {[%clk 0:01:44]} 33. Qh5 {[%clk 0:00:08]}  Bxe3 {[%clk 0:01:43]} 34. fxe3 {[%clk 0:00:09]}  Ng7 {[%clk 0:01:43]} 35. Qg5 {[%clk 0:00:09]}  Rc7 {[%clk 0:01:37]} 36. Rxc7 {[%clk 0:00:08]}  Qxc7 {[%clk 0:01:38]} 37. Nxb5 {[%clk 0:00:08]}  Qb6 {[%clk 0:01:32]} 38. Nc3 {[%clk 0:00:01]}  f4 {[%clk 0:01:32]} 39. gxf4 {[%clk 0:00:01]}  Qxe3+ {[%clk 0:01:33]} 40. Kg2 {[%clk 0:00:02]}  Qxc3 {[%clk 0:01:32]} 41. Qd8+ {[%clk 0:00:02]}  Be8 {[%clk 0:01:31]} 42. Qxd6 {[%clk 0:00:03]}  Qd2+ {[%clk 0:01:29]} 43. Kg3 {[%clk 0:00:03]}  Qxf4+ {[%clk 0:01:29]} 44. Kg2 {[%clk 0:00:03]}  Qd2+ {[%clk 0:01:29]} 45. Kg1 {[%clk 0:00:03]}  Qd4+ {[%clk 0:01:27]} 46. Kg2 {[%clk 0:00:03]}  Qe4+ {[%clk 0:01:26]} 47. Kg1 {[%clk 0:00:03]}  Qe3+ {[%clk 0:01:27]} 48. Kg2 {[%clk 0:00:03]}  Bg6 {[%clk 0:01:22]} 49. Qd8+ {[%clk 0:00:00]}  Ne8 {[%clk 0:01:22]} 0-1


[Site "https://www.chess.com"]

[Event "Titled Tuesday Blitz August 1 Late 2023"]
[White "Papayan, Oleg"]
[Black "Haitin, Ilja"]
[WhiteFideId "4193911"]
[BlackFideId "4501764"]
[WhiteElo "2500"]
[BlackElo "2381"]
[Result "1/2-1/2"]
[Round "8"]
[TimeControl "180+1"]
[Date "2023.08.01"]
[WhiteClock "0:00:07"]
[BlackClock "0:00:07"]
[Board "73"]

1. e4 {[%clk 0:03:00]}  e6 {[%clk 0:02:33]} 2. d4 {[%clk 0:03:00]}  d5 {[%clk 0:02:29]} 3. Nc3 {[%clk 0:03:00]}  Be7 {[%clk 0:02:29]} 4. Nf3 {[%clk 0:02:45]}  Nf6 {[%clk 0:02:29]} 5. Bd3 {[%clk 0:02:40]}  c5 {[%clk 0:02:28]} 6. dxc5 {[%clk 0:02:28]}  dxe4 {[%clk 0:02:28]} 7. Nxe4 {[%clk 0:02:27]}  Nxe4 {[%clk 0:02:28]} 8. Bxe4 {[%clk 0:02:28]}  Qxd1+ {[%clk 0:02:28]} 9. Kxd1 {[%clk 0:02:29]}  Bxc5 {[%clk 0:02:28]} 10. Ke2 {[%clk 0:02:24]}  Nd7 {[%clk 0:02:24]} 11. c3 {[%clk 0:02:18]}  Nf6 {[%clk 0:02:23]} 12. Bd3 {[%clk 0:02:11]}  b6 {[%clk 0:02:19]} 13. Bb5+ {[%clk 0:02:07]}  Ke7 {[%clk 0:02:18]} 14. Be3 {[%clk 0:02:03]}  Bxe3 {[%clk 0:02:15]} 15. Kxe3 {[%clk 0:02:04]}  Bb7 {[%clk 0:02:14]} 16. Rhd1 {[%clk 0:01:53]}  Rhd8 {[%clk 0:02:13]} 17. g3 {[%clk 0:01:43]}  a6 {[%clk 0:01:49]} 18. Ba4 {[%clk 0:01:33]}  b5 {[%clk 0:01:47]} 19. Bb3 {[%clk 0:01:24]}  Nd5+ {[%clk 0:01:39]} 20. Ke2 {[%clk 0:01:17]}  f6 {[%clk 0:01:37]} 21. Nd4 {[%clk 0:01:11]}  g6 {[%clk 0:01:30]} 22. a4 {[%clk 0:01:06]}  e5 {[%clk 0:01:28]} 23. Nc2 {[%clk 0:00:54]}  Nc7 {[%clk 0:01:17]} 24. axb5 {[%clk 0:00:44]}  axb5 {[%clk 0:01:14]} 25. Nb4 {[%clk 0:00:43]}  f5 {[%clk 0:01:05]} 26. Rxd8 {[%clk 0:00:42]}  Kxd8 {[%clk 0:01:01]} 27. Rd1+ {[%clk 0:00:43]}  Ke7 {[%clk 0:01:00]} 28. Nd3 {[%clk 0:00:43]}  e4 {[%clk 0:00:35]} 29. Nf4 {[%clk 0:00:43]}  Ra6 {[%clk 0:00:21]} 30. h4 {[%clk 0:00:33]}  Rd6 {[%clk 0:00:20]} 31. Ra1 {[%clk 0:00:33]}  Kf6 {[%clk 0:00:16]} 32. Ra7 {[%clk 0:00:33]}  Rb6 {[%clk 0:00:16]} 33. Ke3 {[%clk 0:00:22]}  h6 {[%clk 0:00:16]} 34. Ne2 {[%clk 0:00:20]}  Ke5 {[%clk 0:00:14]} 35. Nd4 {[%clk 0:00:17]}  g5 {[%clk 0:00:14]} 36. hxg5 {[%clk 0:00:17]}  hxg5 {[%clk 0:00:15]} 37. Ra5 {[%clk 0:00:17]}  f4+ {[%clk 0:00:15]} 38. gxf4+ {[%clk 0:00:17]}  gxf4+ {[%clk 0:00:16]} 39. Kd2 {[%clk 0:00:17]}  Ra6 {[%clk 0:00:12]} 40. Rxa6 {[%clk 0:00:12]}  Bxa6 {[%clk 0:00:13]} 41. Nc6+ {[%clk 0:00:10]}  Kd6 {[%clk 0:00:11]} 42. Nb4 {[%clk 0:00:11]}  Bb7 {[%clk 0:00:11]} 43. Bc2 {[%clk 0:00:12]}  Ke5 {[%clk 0:00:11]} 44. Bd1 {[%clk 0:00:11]}  Nd5 {[%clk 0:00:11]} 45. Nc2 {[%clk 0:00:09]}  Bc6 {[%clk 0:00:09]} 46. Be2 {[%clk 0:00:09]}  Bd7 {[%clk 0:00:09]} 47. Nd4 {[%clk 0:00:09]}  Nc7 {[%clk 0:00:09]} 48. Nb3 {[%clk 0:00:09]}  Kd5 {[%clk 0:00:09]} 49. Nc1 {[%clk 0:00:08]}  Ke5 {[%clk 0:00:09]} 50. Na2 {[%clk 0:00:08]}  Kd5 {[%clk 0:00:09]} 51. Nb4+ {[%clk 0:00:09]}  Ke5 {[%clk 0:00:09]} 52. Nc2 {[%clk 0:00:10]}  Kd5 {[%clk 0:00:09]} 53. Na3 {[%clk 0:00:10]}  Ke5 {[%clk 0:00:09]} 54. b4 {[%clk 0:00:10]}  Kd5 {[%clk 0:00:10]} 55. Nc2 {[%clk 0:00:10]}  Ke5 {[%clk 0:00:10]} 56. Nd4 {[%clk 0:00:11]}  Kd5 {[%clk 0:00:10]} 57. Nb3 {[%clk 0:00:11]}  Ke5 {[%clk 0:00:09]} 58. Nc5 {[%clk 0:00:12]}  Bc6 {[%clk 0:00:09]} 59. Bf1 {[%clk 0:00:09]}  Nd5 {[%clk 0:00:09]} 60. Nb3 {[%clk 0:00:08]}  Nc7 {[%clk 0:00:09]} 61. Nd4 {[%clk 0:00:08]}  Bd7 {[%clk 0:00:09]} 62. Be2 {[%clk 0:00:08]}  Kd5 {[%clk 0:00:09]} 63. Nb3 {[%clk 0:00:07]}  Ke5 {[%clk 0:00:09]} 64. Na5 {[%clk 0:00:07]}  Kd5 {[%clk 0:00:07]} 65. Nb7 {[%clk 0:00:07]}  Ke5 {[%clk 0:00:06]} 66. Nc5 {[%clk 0:00:07]}  Bc6 {[%clk 0:00:07]} 67. c4 {[%clk 0:00:04]}  Kd4 {[%clk 0:00:04]} 68. cxb5 {[%clk 0:00:03]}  Bxb5 {[%clk 0:00:03]} 69. Ne6+ {[%clk 0:00:02]}  Nxe6 {[%clk 0:00:02]} 70. Bxb5 {[%clk 0:00:02]}  e3+ {[%clk 0:00:03]} 71. fxe3+ {[%clk 0:00:03]}  fxe3+ {[%clk 0:00:04]} 72. Ke1 {[%clk 0:00:03]}  Kc3 {[%clk 0:00:04]} 73. Bd7 {[%clk 0:00:03]}  Nd4 {[%clk 0:00:03]} 74. b5 {[%clk 0:00:03]}  Nxb5 {[%clk 0:00:02]} 75. Bxb5 {[%clk 0:00:04]}  Kd4 {[%clk 0:00:03]} 76. Be2 {[%clk 0:00:04]}  Kc5 {[%clk 0:00:04]} 77. Kf1 {[%clk 0:00:04]}  Kb6 {[%clk 0:00:04]} 78. Kg2 {[%clk 0:00:05]}  Kc5 {[%clk 0:00:05]} 79. Kf3 {[%clk 0:00:06]}  Kd4 {[%clk 0:00:06]} 80. Kf4 {[%clk 0:00:06]}  Kc5 {[%clk 0:00:07]} 81. Kxe3 {[%clk 0:00:07]} 1/2-1/2


[Site "https://www.chess.com"]

[Event "Titled Tuesday Blitz August 1 Late 2023"]
[White "Haydon, David L"]
[Black "Vafin, Ayrat"]
[WhiteFideId "415405"]
[BlackFideId "4146530"]
[WhiteElo "2639"]
[BlackElo "2299"]
[Result "1-0"]
[Round "8"]
[TimeControl "180+1"]
[Date "2023.08.01"]
[WhiteClock "0:02:04"]
[BlackClock "0:00:08"]
[Board "77"]

1. e4 {[%clk 0:03:00]}  e5 {[%clk 0:02:56]} 2. Bc4 {[%clk 0:03:00]}  Nf6 {[%clk 0:02:55]} 3. d3 {[%clk 0:03:00]}  c6 {[%clk 0:02:56]} 4. Nc3 {[%clk 0:02:58]}  d5 {[%clk 0:02:54]} 5. exd5 {[%clk 0:02:58]}  cxd5 {[%clk 0:02:54]} 6. Bb3 {[%clk 0:02:58]}  Nc6 {[%clk 0:02:53]} 7. Nf3 {[%clk 0:02:58]}  h6 {[%clk 0:02:52]} 8. O-O {[%clk 0:02:58]}  Be7 {[%clk 0:02:44]} 9. h3 {[%clk 0:02:55]}  O-O {[%clk 0:02:38]} 10. Re1 {[%clk 0:02:54]}  Qd6 {[%clk 0:02:28]} 11. Nxe5 {[%clk 0:02:47]}  Nxe5 {[%clk 0:02:26]} 12. Bf4 {[%clk 0:02:47]}  Be6 {[%clk 0:02:19]} 13. Bxe5 {[%clk 0:02:46]}  Qd7 {[%clk 0:02:19]} 14. Qf3 {[%clk 0:02:42]}  Rfd8 {[%clk 0:01:45]} 15. d4 {[%clk 0:02:38]}  b5 {[%clk 0:01:39]} 16. Ne2 {[%clk 0:02:27]}  Ne4 {[%clk 0:01:34]} 17. Nf4 {[%clk 0:02:21]}  Nd2 {[%clk 0:01:19]} 18. Qg3 {[%clk 0:02:11]}  g5 {[%clk 0:00:52]} 19. Nxe6 {[%clk 0:02:09]}  fxe6 {[%clk 0:00:51]} 20. Qd3 {[%clk 0:02:07]}  Ne4 {[%clk 0:00:44]} 21. Rxe4 {[%clk 0:02:03]}  dxe4 {[%clk 0:00:08]} 22. Qxe4 {[%clk 0:02:04]} 1-0


[Site "https://www.chess.com"]

[Event "Titled Tuesday Blitz August 1 Late 2023"]
[White "Jorajuria Mendoza, Algol"]
[Black "Sun, Rick"]
[WhiteFideId "5128897"]
[BlackFideId "30909481"]
[WhiteElo "2389"]
[BlackElo "2604"]
[Result "1-0"]
[Round "8"]
[TimeControl "180+1"]
[Date "2023.08.01"]
[WhiteClock "0:01:06"]
[BlackClock "0:00:00"]
[Board "79"]

1. e4 {[%clk 0:02:54]}  e5 {[%clk 0:03:00]} 2. Nf3 {[%clk 0:02:54]}  Nc6 {[%clk 0:03:00]} 3. Bb5 {[%clk 0:02:53]}  a6 {[%clk 0:03:00]} 4. Ba4 {[%clk 0:02:53]}  Nf6 {[%clk 0:03:00]} 5. O-O {[%clk 0:02:54]}  Be7 {[%clk 0:03:00]} 6. Re1 {[%clk 0:02:54]}  b5 {[%clk 0:03:00]} 7. Bb3 {[%clk 0:02:54]}  d6 {[%clk 0:03:01]} 8. c3 {[%clk 0:02:52]}  O-O {[%clk 0:02:58]} 9. h3 {[%clk 0:02:49]}  Na5 {[%clk 0:02:58]} 10. Bc2 {[%clk 0:02:48]}  d5 {[%clk 0:02:59]} 11. Nxe5 {[%clk 0:02:33]}  dxe4 {[%clk 0:02:51]} 12. d4 {[%clk 0:02:27]}  exd3 {[%clk 0:02:04]} 13. Qxd3 {[%clk 0:02:25]}  Bb7 {[%clk 0:01:44]} 14. Bg5 {[%clk 0:02:20]}  Qxd3 {[%clk 0:01:32]} 15. Nxd3 {[%clk 0:02:15]}  Rfe8 {[%clk 0:01:28]} 16. Nd2 {[%clk 0:02:11]}  Rad8 {[%clk 0:01:15]} 17. Rad1 {[%clk 0:02:05]}  c5 {[%clk 0:00:59]} 18. Bxf6 {[%clk 0:02:04]}  gxf6 {[%clk 0:00:52]} 19. Nf1 {[%clk 0:01:41]}  c4 {[%clk 0:00:43]} 20. Nf4 {[%clk 0:01:36]}  Bc5 {[%clk 0:00:33]} 21. Rxe8+ {[%clk 0:01:27]}  Rxe8 {[%clk 0:00:32]} 22. Ng3 {[%clk 0:01:20]}  Kh8 {[%clk 0:00:17]} 23. Ngh5 {[%clk 0:01:18]}  b4 {[%clk 0:00:10]} 24. Nxf6 {[%clk 0:01:16]}  Rc8 {[%clk 0:00:08]} 25. Rd7 {[%clk 0:01:08]}  b3 {[%clk 0:00:00]} 26. Rxf7 {[%clk 0:01:06]} 1-0


[Site "https://www.chess.com"]